[Event "Early-Titled-Tuesday-Blitz-March-05-2024"]
[Site "Chess.com"]
[Date "2024.03.05"]
[Round "4"]
[White "Meri-Arabidze"]
[Black "subham777"]
[Result "0-1"]
[WhiteElo "2706"]
[BlackElo "2548"]
[TimeControl "180+1"]
[EndTime "8:43:34 PST"]
[Termination "subham777 won on time"]

1. d4 {[%clk 0:03:00.9]} 1... d5 {[%clk 0:02:58.2]} 2. Nf3 {[%clk 0:03:00.6]}
2... Nf6 {[%clk 0:02:58]} 3. c4 {[%clk 0:03:01]} 3... e6 {[%clk 0:02:58.2]} 4.
Nc3 {[%clk 0:03:00.8]} 4... Be7 {[%clk 0:02:58.5]} 5. Bg5 {[%clk 0:03:00.3]}
5... O-O {[%clk 0:02:58.3]} 6. e3 {[%clk 0:03:00.7]} 6... Ne4 {[%clk 0:02:58.4]}
7. Bxe7 {[%clk 0:02:59.5]} 7... Qxe7 {[%clk 0:02:58.9]} 8. Rc1 {[%clk 0:02:58]}
8... c6 {[%clk 0:02:58.1]} 9. Qc2 {[%clk 0:02:58.2]} 9... f5 {[%clk 0:02:54]}
10. Bd3 {[%clk 0:02:53.4]} 10... Nd7 {[%clk 0:02:51.7]} 11. O-O {[%clk
0:02:53.4]} 11... Rf6 {[%clk 0:02:47.1]} 12. Ne2 {[%clk 0:02:50.9]} 12... Rh6
{[%clk 0:02:45]} 13. a3 {[%clk 0:02:29.8]} 13... g5 {[%clk 0:02:38.9]} 14. Bxe4
{[%clk 0:02:11.4]} 14... fxe4 {[%clk 0:02:32.1]} 15. Ne5 {[%clk 0:02:11.5]}
15... Nxe5 {[%clk 0:02:24.4]} 16. dxe5 {[%clk 0:02:12.4]} 16... g4 {[%clk
0:02:22.8]} 17. Nf4 {[%clk 0:01:51.6]} 17... Qh4 {[%clk 0:02:09.6]} 18. h3
{[%clk 0:01:51.3]} 18... gxh3 {[%clk 0:02:06.3]} 19. Nxh3 {[%clk 0:01:51.8]}
19... Bd7 {[%clk 0:01:40.7]} 20. f3 {[%clk 0:01:48.8]} 20... Qg3 {[%clk
0:01:35.4]} 21. Nf4 {[%clk 0:01:39.4]} 21... Rf8 {[%clk 0:01:21.3]} 22. fxe4
{[%clk 0:01:38.7]} 22... Qxe3+ {[%clk 0:00:31.7]} 23. Qf2 {[%clk 0:01:38]} 23...
Qxf2+ {[%clk 0:00:24.5]} 24. Rxf2 {[%clk 0:01:38.9]} 24... dxe4 {[%clk
0:00:22.1]} 25. c5 {[%clk 0:01:31.9]} 25... Rf5 {[%clk 0:00:21]} 26. Rd1 {[%clk
0:01:25.2]} 26... Rf7 {[%clk 0:00:18.9]} 27. g3 {[%clk 0:01:21.7]} 27... e3
{[%clk 0:00:12]} 28. Re2 {[%clk 0:01:14.9]} 28... Kf8 {[%clk 0:00:09]} 29. Rxe3
{[%clk 0:01:14]} 29... Ke8 {[%clk 0:00:09.2]} 30. b4 {[%clk 0:01:08.8]} 30... b6
{[%clk 0:00:08.8]} 31. Rd6 {[%clk 0:01:01.4]} 31... b5 {[%clk 0:00:07]} 32. Red3
{[%clk 0:00:57.5]} 32... Re7 {[%clk 0:00:07.1]} 33. Kg2 {[%clk 0:00:44.6]} 33...
Rf7 {[%clk 0:00:07.2]} 34. Rd2 {[%clk 0:00:32.8]} 34... Re7 {[%clk 0:00:07]} 35.
R2d4 {[%clk 0:00:29.1]} 35... Rf7 {[%clk 0:00:06.8]} 36. Kg1 {[%clk 0:00:18]}
36... Re7 {[%clk 0:00:06.5]} 37. Ne2 {[%clk 0:00:18.4]} 37... Rg6 {[%clk
0:00:06]} 38. Kg2 {[%clk 0:00:15.2]} 38... Reg7 {[%clk 0:00:06.4]} 39. Rd3
{[%clk 0:00:12]} 39... Rg4 {[%clk 0:00:06.4]} 40. Nc3 {[%clk 0:00:04.8]} 40...
h5 {[%clk 0:00:05.6]} 41. Kh3 {[%clk 0:00:05.2]} 41... h4 {[%clk 0:00:05.2]} 42.
gxh4 {[%clk 0:00:05.3]} 42... Rg1 {[%clk 0:00:05.7]} 43. Rd2 {[%clk 0:00:02.9]}
43... R1g3+ {[%clk 0:00:04.2]} 44. Kh2 {[%clk 0:00:03.4]} 44... Rxc3 {[%clk
0:00:05]} 45. h5 {[%clk 0:00:03.5]} 45... Rh7 {[%clk 0:00:05.1]} 46. Kg2 {[%clk
0:00:02.5]} 46... Rc4 {[%clk 0:00:04.1]} 47. h6 {[%clk 0:00:01.4]} 47... Rg4+
{[%clk 0:00:04.2]} 48. Kf3 {[%clk 0:00:01.8]} 48... Rg6 {[%clk 0:00:04.9]} 49.
Rh2 {[%clk 0:00:01.4]} 49... Rgxh6 {[%clk 0:00:04.7]} 50. Rg2 {[%clk 0:00:01.8]}
50... Rf7+ {[%clk 0:00:04]} 51. Ke2 {[%clk 0:00:01.7]} 51... Rh8 {[%clk
0:00:03.6]} 52. Rg6 {[%clk 0:00:01.4]} 52... Rhf8 {[%clk 0:00:03.8]} 53. Rh6
{[%clk 0:00:01.5]} 53... Rf2+ {[%clk 0:00:03.7]} 54. Kd1 {[%clk 0:00:02.1]}
54... Rg2 {[%clk 0:00:02.8]} 55. Ke1 {[%clk 0:00:02]} 55... Rg1+ {[%clk
0:00:03.5]} 56. Ke2 {[%clk 0:00:02]} 56... Rg2+ {[%clk 0:00:04.2]} 57. Ke3
{[%clk 0:00:02.5]} 57... Rg7 {[%clk 0:00:04.7]} 58. Rf6 {[%clk 0:00:02]} 58...
Rxf6 {[%clk 0:00:04.3]} 59. exf6 {[%clk 0:00:02.6]} 59... Rf7 {[%clk 0:00:04.6]}
60. a4 {[%clk 0:00:02.7]} 60... bxa4 {[%clk 0:00:04.4]} 61. b5 {[%clk
0:00:03.2]} 61... cxb5 {[%clk 0:00:04.4]} 62. c6 {[%clk 0:00:03.8]} 62... Bxc6
{[%clk 0:00:04.2]} 63. Rxc6 {[%clk 0:00:03.9]} 63... Rxf6 {[%clk 0:00:04.6]} 64.
Ra6 {[%clk 0:00:04.4]} 64... Kd7 {[%clk 0:00:03.4]} 65. Rxa7+ {[%clk 0:00:04.7]}
65... Kc6 {[%clk 0:00:04]} 66. Kd4 {[%clk 0:00:05.3]} 66... Rf4+ {[%clk
0:00:03.8]} 67. Ke5 {[%clk 0:00:05.4]} 67... Rf1 {[%clk 0:00:04]} 68. Kxe6
{[%clk 0:00:04.3]} 68... Kc5 {[%clk 0:00:04.5]} 69. Ke5 {[%clk 0:00:03.4]} 69...
Rd1 {[%clk 0:00:03.7]} 70. Rc7+ {[%clk 0:00:03]} 70... Kb4 {[%clk 0:00:04]} 71.
Ra7 {[%clk 0:00:02.9]} 71... a3 {[%clk 0:00:04.4]} 72. Ke4 {[%clk 0:00:03.8]}
72... Kb3 {[%clk 0:00:04.8]} 73. Ke3 {[%clk 0:00:04.3]} 73... b4 {[%clk
0:00:05.4]} 74. Ke2 {[%clk 0:00:04.5]} 74... Rd8 {[%clk 0:00:06.1]} 0-1

[Event "Early-Titled-Tuesday-Blitz-March-05-2024"]
[Site "Chess.com"]
[Date "2024.03.05"]
[Round "4"]
[White "Mesa_1"]
[Black "Veganator13"]
[Result "1-0"]
[WhiteElo "2490"]
[BlackElo "2298"]
[TimeControl "180+1"]
[EndTime "8:43:37 PST"]
[Termination "Mesa_1 won on time"]

1. d4 {[%clk 0:03:00.9]} 1... g6 {[%clk 0:02:59.4]} 2. e4 {[%clk 0:02:59.6]}
2... Bg7 {[%clk 0:02:58.8]} 3. Nf3 {[%clk 0:02:59.1]} 3... d6 {[%clk 0:02:57.9]}
4. Nc3 {[%clk 0:02:59.7]} 4... a6 {[%clk 0:02:57.4]} 5. Be2 {[%clk 0:03:00.2]}
5... Nf6 {[%clk 0:02:56.7]} 6. O-O {[%clk 0:02:58.5]} 6... O-O {[%clk
0:02:56.7]} 7. Re1 {[%clk 0:02:55.4]} 7... Nc6 {[%clk 0:02:56.3]} 8. d5 {[%clk
0:02:52.4]} 8... Nb8 {[%clk 0:02:55.1]} 9. a4 {[%clk 0:02:49.3]} 9... e5 {[%clk
0:02:50.9]} 10. dxe6 {[%clk 0:02:42.6]} 10... Bxe6 {[%clk 0:02:49.7]} 11. Nd4
{[%clk 0:02:42.1]} 11... Bd7 {[%clk 0:02:49.4]} 12. h3 {[%clk 0:02:39.1]} 12...
Re8 {[%clk 0:02:48.7]} 13. Bf1 {[%clk 0:02:38.9]} 13... Nc6 {[%clk 0:02:47.9]}
14. Nb3 {[%clk 0:02:27.2]} 14... Be6 {[%clk 0:02:18.6]} 15. Bg5 {[%clk
0:02:21.9]} 15... h6 {[%clk 0:02:18.4]} 16. Bh4 {[%clk 0:02:21.7]} 16... g5
{[%clk 0:02:18.2]} 17. Bg3 {[%clk 0:02:22.2]} 17... d5 {[%clk 0:02:14.8]} 18.
Nc5 {[%clk 0:02:02.9]} 18... dxe4 {[%clk 0:02:08.5]} 19. Qxd8 {[%clk 0:01:46.8]}
19... Raxd8 {[%clk 0:02:05.1]} 20. Rad1 {[%clk 0:01:37.4]} 20... Rxd1 {[%clk
0:02:00.4]} 21. Rxd1 {[%clk 0:01:38.3]} 21... Bc8 {[%clk 0:01:58.7]} 22. Bxc7
{[%clk 0:01:35.8]} 22... Nb4 {[%clk 0:01:53.9]} 23. N3xe4 {[%clk 0:01:22.6]}
23... Nxe4 {[%clk 0:01:22.2]} 24. Nxe4 {[%clk 0:01:23.5]} 24... Nxc2 {[%clk
0:01:22.7]} 25. Nd6 {[%clk 0:01:07]} 25... Rf8 {[%clk 0:01:22.1]} 26. Nxc8
{[%clk 0:00:50.9]} 26... Rxc8 {[%clk 0:01:21.4]} 27. Rd7 {[%clk 0:00:51.4]}
27... Bxb2 {[%clk 0:00:46.2]} 28. Bc4 {[%clk 0:00:46.3]} 28... Nb4 {[%clk
0:00:24.6]} 29. Bxf7+ {[%clk 0:00:34.4]} 29... Kh8 {[%clk 0:00:24.4]} 30. Bb3
{[%clk 0:00:27.4]} 30... Nc6 {[%clk 0:00:20.9]} 31. g3 {[%clk 0:00:24]} 31...
Bd4 {[%clk 0:00:16.2]} 32. Kg2 {[%clk 0:00:20.5]} 32... Bg7 {[%clk 0:00:14.1]}
33. f4 {[%clk 0:00:19.2]} 33... Nd4 {[%clk 0:00:12.7]} 34. fxg5 {[%clk
0:00:17.2]} 34... Nxb3 {[%clk 0:00:10.3]} 35. gxh6 {[%clk 0:00:17]} 35... Bxh6
{[%clk 0:00:10.8]} 36. Be5+ {[%clk 0:00:17.5]} 36... Kg8 {[%clk 0:00:11.2]} 37.
Rxb7 {[%clk 0:00:18]} 37... Nc5 {[%clk 0:00:11.2]} 38. Rb6 {[%clk 0:00:17.5]}
38... Bf8 {[%clk 0:00:10.4]} 39. g4 {[%clk 0:00:16.4]} 39... a5 {[%clk
0:00:10.5]} 40. h4 {[%clk 0:00:14.9]} 40... Nxa4 {[%clk 0:00:10]} 41. Ra6 {[%clk
0:00:15.6]} 41... Bb4 {[%clk 0:00:09.6]} 42. g5 {[%clk 0:00:16]} 42... Nc5
{[%clk 0:00:10.5]} 43. Ra7 {[%clk 0:00:16.2]} 43... Nd3 {[%clk 0:00:11.4]} 44.
Bf6 {[%clk 0:00:14.5]} 44... Rc2+ {[%clk 0:00:10.7]} 45. Kf3 {[%clk 0:00:14.9]}
45... Bf8 {[%clk 0:00:10.3]} 46. Kg4 {[%clk 0:00:14.7]} 46... Rc4+ {[%clk
0:00:07.9]} 47. Kf5 {[%clk 0:00:12.2]} 47... Nf4 {[%clk 0:00:06.9]} 48. g6
{[%clk 0:00:12.9]} 48... Nh5 {[%clk 0:00:06.5]} 49. Be5 {[%clk 0:00:10.9]} 49...
Rc5 {[%clk 0:00:06.6]} 50. Ra8 {[%clk 0:00:10.2]} 50... Ng7+ {[%clk 0:00:06.6]}
51. Kf6 {[%clk 0:00:09.7]} 51... Rb5 {[%clk 0:00:06.7]} 52. Bd6 {[%clk
0:00:08.4]} 52... Nh5+ {[%clk 0:00:03.9]} 53. Ke6 {[%clk 0:00:08.1]} 53... Ng7+
{[%clk 0:00:04.2]} 54. Kd7 {[%clk 0:00:07.8]} 54... Rf5 {[%clk 0:00:05.1]} 55.
Rxa5 {[%clk 0:00:07]} 55... Rf6 {[%clk 0:00:04.5]} 56. Bxf8 {[%clk 0:00:06.1]}
56... Kxf8 {[%clk 0:00:04.5]} 57. Ra8+ {[%clk 0:00:06.1]} 57... Ne8 {[%clk
0:00:04.5]} 58. Rxe8+ {[%clk 0:00:07]} 58... Kg7 {[%clk 0:00:05.4]} 59. h5
{[%clk 0:00:07.6]} 59... Rf5 {[%clk 0:00:05.5]} 60. Re7+ {[%clk 0:00:08]} 60...
Kh6 {[%clk 0:00:04.7]} 61. Rh7+ {[%clk 0:00:08.5]} 61... Kg5 {[%clk 0:00:05.2]}
62. g7 {[%clk 0:00:09.1]} 62... Rf7+ {[%clk 0:00:04.6]} 63. Ke8 {[%clk
0:00:08.7]} 63... Kf6 {[%clk 0:00:03.6]} 64. g8=Q {[%clk 0:00:07.9]} 64... Re7+
{[%clk 0:00:04.1]} 65. Rxe7 {[%clk 0:00:07]} 1-0

[Event "Early-Titled-Tuesday-Blitz-March-05-2024"]
[Site "Chess.com"]
[Date "2024.03.05"]
[Round "4"]
[White "sathvikadiga"]
[Black "ljuks68"]
[Result "1-0"]
[WhiteElo "2587"]
[BlackElo "2405"]
[TimeControl "180+1"]
[EndTime "8:43:51 PST"]
[Termination "sathvikadiga won by resignation"]

1. e4 {[%clk 0:03:00.9]} 1... e6 {[%clk 0:03:00.3]} 2. d4 {[%clk 0:02:58.9]}
2... d5 {[%clk 0:03:00.7]} 3. Bd3 {[%clk 0:02:59.4]} 3... dxe4 {[%clk
0:02:59.5]} 4. Bxe4 {[%clk 0:03:00.3]} 4... Nf6 {[%clk 0:03:00.1]} 5. Bf3 {[%clk
0:03:01]} 5... Nbd7 {[%clk 0:03:00.7]} 6. Ne2 {[%clk 0:03:00.8]} 6... Bd6 {[%clk
0:03:01.3]} 7. c4 {[%clk 0:02:58.1]} 7... e5 {[%clk 0:03:00.4]} 8. Nbc3 {[%clk
0:02:57.5]} 8... O-O {[%clk 0:02:55.1]} 9. O-O {[%clk 0:02:57.4]} 9... Re8
{[%clk 0:02:54.6]} 10. Ng3 {[%clk 0:02:52.1]} 10... exd4 {[%clk 0:02:51.1]} 11.
Qxd4 {[%clk 0:02:53]} 11... Ne5 {[%clk 0:02:50.3]} 12. Be2 {[%clk 0:02:45.9]}
12... Be6 {[%clk 0:02:38]} 13. Be3 {[%clk 0:02:30]} 13... Neg4 {[%clk
0:02:30.6]} 14. Rad1 {[%clk 0:02:13.1]} 14... Nxe3 {[%clk 0:02:26.9]} 15. fxe3
{[%clk 0:02:14]} 15... Bxg3 {[%clk 0:02:19.4]} 16. hxg3 {[%clk 0:02:14.9]} 16...
Qe7 {[%clk 0:02:16.9]} 17. Qf4 {[%clk 0:02:04.5]} 17... Qc5 {[%clk 0:01:58.2]}
18. g4 {[%clk 0:01:33]} 18... h6 {[%clk 0:01:57.7]} 19. Rd4 {[%clk 0:01:23.8]}
19... Qg5 {[%clk 0:01:51.5]} 20. b4 {[%clk 0:00:53]} 20... Rad8 {[%clk
0:01:30.3]} 21. Qxg5 {[%clk 0:00:33.9]} 21... hxg5 {[%clk 0:01:29.2]} 22. Rfd1
{[%clk 0:00:34.8]} 22... Rxd4 {[%clk 0:01:25.6]} 23. Rxd4 {[%clk 0:00:35.7]}
23... c6 {[%clk 0:01:09.3]} 24. Bf3 {[%clk 0:00:32.8]} 24... Rc8 {[%clk
0:00:45.7]} 25. c5 {[%clk 0:00:30.6]} 25... Kf8 {[%clk 0:00:37]} 26. Kf2 {[%clk
0:00:29.9]} 26... Ke7 {[%clk 0:00:37.1]} 27. a4 {[%clk 0:00:30.4]} 27... a6
{[%clk 0:00:35.5]} 28. Kg3 {[%clk 0:00:18.3]} 28... Rd8 {[%clk 0:00:25.4]} 29.
b5 {[%clk 0:00:12.3]} 29... axb5 {[%clk 0:00:23.6]} 30. axb5 {[%clk 0:00:13.2]}
30... Rxd4 {[%clk 0:00:21.1]} 31. exd4 {[%clk 0:00:14.1]} 31... Kd7 {[%clk
0:00:21.2]} 32. bxc6+ {[%clk 0:00:08.3]} 32... bxc6 {[%clk 0:00:21.1]} 33. Nd1
{[%clk 0:00:07]} 33... Bd5 {[%clk 0:00:19]} 34. Nb2 {[%clk 0:00:05.5]} 34...
Bxf3 {[%clk 0:00:17.7]} 35. Kxf3 {[%clk 0:00:05.7]} 35... Ke6 {[%clk 0:00:18.3]}
36. Nd3 {[%clk 0:00:04]} 36... Kd5 {[%clk 0:00:18.2]} 37. Nb4+ {[%clk
0:00:04.6]} 37... Kxd4 {[%clk 0:00:18.6]} 38. Nxc6+ {[%clk 0:00:05.5]} 38...
Kxc5 {[%clk 0:00:19.2]} 39. Nd8 {[%clk 0:00:06.4]} 39... Nd7 {[%clk 0:00:17.9]}
40. Nxf7 {[%clk 0:00:07.3]} 40... Kd5 {[%clk 0:00:18]} 41. Nxg5 {[%clk
0:00:05.9]} 41... Ke5 {[%clk 0:00:17.7]} 42. Ne4 {[%clk 0:00:05]} 42... Nb6
{[%clk 0:00:16.6]} 43. Nf2 {[%clk 0:00:05]} 43... Nd5 {[%clk 0:00:16.6]} 44.
Nd3+ {[%clk 0:00:05.4]} 44... Kd4 {[%clk 0:00:16.4]} 45. Nf4 {[%clk 0:00:06]}
45... Nc7 {[%clk 0:00:13.4]} 46. Nh5 {[%clk 0:00:05.5]} 46... g5 {[%clk
0:00:12.7]} 47. Ng7 {[%clk 0:00:03.8]} 47... Ke5 {[%clk 0:00:12.6]} 48. Nf5
{[%clk 0:00:04.2]} 48... Ne6 {[%clk 0:00:12.5]} 49. Ke3 {[%clk 0:00:02.7]} 49...
Nf4 {[%clk 0:00:10.6]} 50. g3 {[%clk 0:00:03.4]} 50... Ne6 {[%clk 0:00:10.5]}
51. Kf3 {[%clk 0:00:02.9]} 51... Nc5 {[%clk 0:00:09.8]} 52. Ne3 {[%clk 0:00:03]}
52... Ne6 {[%clk 0:00:09.6]} 53. Nc2 {[%clk 0:00:02.9]} 53... Nc5 {[%clk
0:00:09.1]} 54. Nb4 {[%clk 0:00:02.9]} 54... Ne6 {[%clk 0:00:08.9]} 55. Nd3+
{[%clk 0:00:03.5]} 55... Kd4 {[%clk 0:00:09.1]} 56. Nf2 {[%clk 0:00:04.1]} 56...
Ke5 {[%clk 0:00:09.2]} 57. Nh3 {[%clk 0:00:04.7]} 57... Nd4+ {[%clk 0:00:09.4]}
58. Ke3 {[%clk 0:00:05.3]} 58... Ne6 {[%clk 0:00:09.6]} 59. Kd3 {[%clk
0:00:05.3]} 59... Kd5 {[%clk 0:00:10.1]} 60. Nf2 {[%clk 0:00:05.1]} 60... Ke5
{[%clk 0:00:10.6]} 61. Ne4 {[%clk 0:00:04.2]} 61... Kd5 {[%clk 0:00:10.3]} 62.
Nd2 {[%clk 0:00:02.3]} 62... Ke5 {[%clk 0:00:09.9]} 63. Ke3 {[%clk 0:00:03.2]}
63... Kd5 {[%clk 0:00:09.3]} 64. Nf3 {[%clk 0:00:03.9]} 64... Kc5 {[%clk
0:00:07]} 65. Ke4 {[%clk 0:00:04.3]} 65... Kd6 {[%clk 0:00:07.9]} 66. Kf5 {[%clk
0:00:04.4]} 66... Ke7 {[%clk 0:00:07.5]} 67. Nxg5 {[%clk 0:00:03.9]} 67... Nd4+
{[%clk 0:00:07.2]} 68. Kg6 {[%clk 0:00:04.6]} 68... Kf8 {[%clk 0:00:07.3]} 69.
Kf6 {[%clk 0:00:05]} 69... Ne2 {[%clk 0:00:07]} 70. Ne4 {[%clk 0:00:04.7]} 70...
Kg8 {[%clk 0:00:07.4]} 71. g5 {[%clk 0:00:05.1]} 71... Nc1 {[%clk 0:00:06.5]}
72. g6 {[%clk 0:00:03.8]} 72... Nd3 {[%clk 0:00:07]} 73. g7 {[%clk 0:00:03.9]}
73... Nb4 {[%clk 0:00:06.9]} 74. Kg6 {[%clk 0:00:04.2]} 74... Nd5 {[%clk
0:00:06.4]} 75. Nf6+ {[%clk 0:00:05.1]} 75... Nxf6 {[%clk 0:00:06.7]} 76. Kxf6
{[%clk 0:00:06]} 1-0

[Event "Early-Titled-Tuesday-Blitz-March-05-2024"]
[Site "Chess.com"]
[Date "2024.03.05"]
[Round "4"]
[White "Kobalia"]
[Black "Genghis_K"]
[Result "1/2-1/2"]
[WhiteElo "2799"]
[BlackElo "2949"]
[TimeControl "180+1"]
[EndTime "8:43:57 PST"]
[Termination "Game drawn - insufficient material"]

1. e4 {[%clk 0:03:00.9]} 1... c5 {[%clk 0:03:00.1]} 2. Nf3 {[%clk 0:03:01]} 2...
d6 {[%clk 0:03:00.8]} 3. Bb5+ {[%clk 0:03:00.2]} 3... Bd7 {[%clk 0:03:01.3]} 4.
Bxd7+ {[%clk 0:03:00.3]} 4... Nxd7 {[%clk 0:03:02.2]} 5. O-O {[%clk 0:03:00.3]}
5... e6 {[%clk 0:03:02.6]} 6. c3 {[%clk 0:02:59.8]} 6... Ngf6 {[%clk 0:03:01.7]}
7. Qe2 {[%clk 0:02:59.8]} 7... Be7 {[%clk 0:03:01.6]} 8. d4 {[%clk 0:03:00.3]}
8... O-O {[%clk 0:03:02]} 9. Rd1 {[%clk 0:02:58.9]} 9... Qc7 {[%clk 0:03:02.2]}
10. Bf4 {[%clk 0:02:57.7]} 10... Rac8 {[%clk 0:02:52.7]} 11. Na3 {[%clk
0:02:44]} 11... cxd4 {[%clk 0:02:45.3]} 12. cxd4 {[%clk 0:02:44.9]} 12... Qb6
{[%clk 0:02:33.9]} 13. Bg5 {[%clk 0:02:38.2]} 13... h6 {[%clk 0:02:31]} 14. Bh4
{[%clk 0:02:37.6]} 14... Rfe8 {[%clk 0:01:48.5]} 15. Rac1 {[%clk 0:02:34]} 15...
Bf8 {[%clk 0:01:40.6]} 16. e5 {[%clk 0:01:35.4]} 16... dxe5 {[%clk 0:01:28.7]}
17. dxe5 {[%clk 0:01:35.2]} 17... Nd5 {[%clk 0:01:28.8]} 18. Qb5 {[%clk
0:01:27.1]} 18... Nc5 {[%clk 0:01:04.1]} 19. Qxb6 {[%clk 0:01:18.5]} 19... axb6
{[%clk 0:00:50.6]} 20. Nc4 {[%clk 0:01:15.1]} 20... g5 {[%clk 0:00:47.4]} 21.
Bg3 {[%clk 0:01:14.2]} 21... Ne4 {[%clk 0:00:47.3]} 22. a4 {[%clk 0:01:05.4]}
22... Rc6 {[%clk 0:00:42]} 23. Re1 {[%clk 0:00:59.8]} 23... Nc5 {[%clk 0:00:38]}
24. Nd6 {[%clk 0:00:54.4]} 24... Ra8 {[%clk 0:00:32.4]} 25. Nd4 {[%clk
0:00:52.4]} 25... Rc7 {[%clk 0:00:30.2]} 26. b3 {[%clk 0:00:48.5]} 26... Rd7
{[%clk 0:00:28.1]} 27. h4 {[%clk 0:00:44.6]} 27... Nd3 {[%clk 0:00:27.7]} 28.
hxg5 {[%clk 0:00:34.4]} 28... hxg5 {[%clk 0:00:28.6]} 29. N4b5 {[%clk
0:00:33.3]} 29... Nxe1 {[%clk 0:00:23.8]} 30. Rxe1 {[%clk 0:00:32.8]} 30... Ne7
{[%clk 0:00:19.3]} 31. f3 {[%clk 0:00:22.8]} 31... Nf5 {[%clk 0:00:19.8]} 32.
Nxf5 {[%clk 0:00:22.4]} 32... exf5 {[%clk 0:00:20.7]} 33. e6 {[%clk 0:00:22.9]}
33... Bc5+ {[%clk 0:00:20.4]} 34. Bf2 {[%clk 0:00:18.6]} 34... Re8 {[%clk
0:00:17.6]} 35. exd7 {[%clk 0:00:13.4]} 35... Rxe1+ {[%clk 0:00:15.5]} 36. Kh2
{[%clk 0:00:13.7]} 36... Rd1 {[%clk 0:00:15.6]} 37. Bd4 {[%clk 0:00:13.9]} 37...
Be7 {[%clk 0:00:12.3]} 38. Kg3 {[%clk 0:00:10.6]} 38... f6 {[%clk 0:00:11]} 39.
Kf2 {[%clk 0:00:10.8]} 39... Kf7 {[%clk 0:00:10]} 40. Ke2 {[%clk 0:00:11.3]}
40... Rh1 {[%clk 0:00:10]} 41. Bxb6 {[%clk 0:00:11.2]} 41... Rh8 {[%clk
0:00:10.6]} 42. Nd4 {[%clk 0:00:10.8]} 42... Bd8 {[%clk 0:00:08.1]} 43. Bc5
{[%clk 0:00:10.7]} 43... Bc7 {[%clk 0:00:06.6]} 44. Kd3 {[%clk 0:00:10]} 44...
Rd8 {[%clk 0:00:06.7]} 45. Kc4 {[%clk 0:00:10.1]} 45... Rxd7 {[%clk 0:00:07.3]}
46. Nxf5 {[%clk 0:00:10.5]} 46... Ke6 {[%clk 0:00:05.3]} 47. Nd4+ {[%clk
0:00:10.4]} 47... Kf7 {[%clk 0:00:04.8]} 48. g4 {[%clk 0:00:10.6]} 48... Be5
{[%clk 0:00:05.2]} 49. b4 {[%clk 0:00:10.7]} 49... Bxd4 {[%clk 0:00:05]} 50.
Bxd4 {[%clk 0:00:10.8]} 50... Ke6 {[%clk 0:00:05.8]} 51. a5 {[%clk 0:00:10.6]}
51... Rc7+ {[%clk 0:00:06.3]} 52. Bc5 {[%clk 0:00:10.9]} 52... Rh7 {[%clk
0:00:07]} 53. b5 {[%clk 0:00:11.2]} 53... Kd7 {[%clk 0:00:05.7]} 54. a6 {[%clk
0:00:11.3]} 54... bxa6 {[%clk 0:00:06.5]} 55. bxa6 {[%clk 0:00:11.7]} 55... Kc6
{[%clk 0:00:07.2]} 56. a7 {[%clk 0:00:12.2]} 56... Kb7 {[%clk 0:00:07.7]} 57.
Kd5 {[%clk 0:00:12.5]} 57... Rh3 {[%clk 0:00:06.1]} 58. Ke4 {[%clk 0:00:12.4]}
58... Rh1 {[%clk 0:00:06]} 59. Bd4 {[%clk 0:00:12.4]} 59... Re1+ {[%clk
0:00:04]} 60. Kd3 {[%clk 0:00:11.4]} 60... Rf1 {[%clk 0:00:04.3]} 61. Ke2 {[%clk
0:00:11.2]} 61... Rb1 {[%clk 0:00:03.8]} 62. Bxf6 {[%clk 0:00:11.1]} 62... Kxa7
{[%clk 0:00:04]} 63. Bxg5 {[%clk 0:00:11.4]} 63... Kb7 {[%clk 0:00:04.7]} 64.
Be3 {[%clk 0:00:11.4]} 64... Kc6 {[%clk 0:00:05.3]} 65. f4 {[%clk 0:00:11.9]}
65... Kd5 {[%clk 0:00:06]} 66. Kf3 {[%clk 0:00:12.4]} 66... Rf1+ {[%clk
0:00:05.6]} 67. Kg2 {[%clk 0:00:11.7]} 67... Re1 {[%clk 0:00:05.9]} 68. Kf2
{[%clk 0:00:11.4]} 68... Rb1 {[%clk 0:00:05.7]} 69. Kf3 {[%clk 0:00:11.7]} 69...
Rf1+ {[%clk 0:00:05.7]} 70. Bf2 {[%clk 0:00:12.1]} 70... Rb1 {[%clk 0:00:04.9]}
71. f5 {[%clk 0:00:12.3]} 71... Ke5 {[%clk 0:00:03.9]} 72. Bg3+ {[%clk
0:00:12.1]} 72... Kf6 {[%clk 0:00:04.6]} 73. Bh4+ {[%clk 0:00:12.3]} 73... Ke5
{[%clk 0:00:05.1]} 74. Bg3+ {[%clk 0:00:12.3]} 74... Kf6 {[%clk 0:00:05.7]} 75.
Bf4 {[%clk 0:00:12.1]} 75... Rb3+ {[%clk 0:00:05.6]} 76. Be3 {[%clk 0:00:12.5]}
76... Ke5 {[%clk 0:00:05.7]} 77. Kf2 {[%clk 0:00:11.3]} 77... Ke4 {[%clk
0:00:06.1]} 78. Bh6 {[%clk 0:00:10.5]} 78... Rh3 {[%clk 0:00:04.3]} 79. Bc1
{[%clk 0:00:08.5]} 79... Rc3 {[%clk 0:00:03.7]} 80. Bd2 {[%clk 0:00:07.5]} 80...
Rd3 {[%clk 0:00:04.4]} 81. Bh6 {[%clk 0:00:06.3]} 81... Rh3 {[%clk 0:00:04.5]}
82. Bg5 {[%clk 0:00:06.2]} 82... Rf3+ {[%clk 0:00:04.4]} 83. Kg2 {[%clk
0:00:06]} 83... Rxf5 {[%clk 0:00:02]} 84. gxf5 {[%clk 0:00:06]} 84... Kxf5
{[%clk 0:00:02.9]} 1/2-1/2